bitfinex/quotes_ETHUSD_20240621
["timestamp","ask_amount","ask_price","bid_price","bid_amount"]
[1718930899099,2.3822,3512.9,3512.0,3.0]
[1718930899644,0.08254807,3512.8,3512.0,3.0]
[1718930899869,0.24647481,3512.7,3512.0,3.0]
[1718930900375,0.08242863,3512.6,3512.0,3.0]
[1718930902787,5.713,3513.3,3512.0,3.0]
[1718930902788,8.0952,3513.3,3512.0,3.0]
[1718930902944,4.0,3512.5,3512.0,3.0]
[1718930903348,4.0,3512.5,3511.7,3.0]
[1718930903557,4.0,3512.5,3511.8,2.37555191]
[1718930903855,4.0952,3513.3,3511.8,2.37555191]
[1718930904052,0.55,3513.2,3511.8,2.37555191]
[1718930904371,0.63211665,3513.2,3511.8,2.37555191]
[1718930906391,2.34511665,3513.2,3511.7,3.0]
[1718930906706,1.713,3513.0,3511.7,3.0]
[1718930906892,0.55,3512.9,3511.7,3.0]
[1718930907274,0.08214985,3512.8,3511.7,3.0]
[1718930908873,2.3822,3512.6,3511.7,3.0]
[1718930909074,0.85143499,3512.5,3511.7,3.0]
[1718930909275,0.9335948,3512.5,3511.7,3.0]
[1718930910477,4.0,3512.4,3511.7,3.0]
[1718930910901,0.08207018,3512.3,3511.7,3.0]
[1718930912670,0.85143499,3512.5,3511.7,3.0]
[1718930913104,0.08206024,3512.4,3511.7,3.0]
[1718930913471,0.85143499,3512.5,3511.7,3.0]
[1718930913863,0.0820868,3512.4,3511.7,3.0]
[1718930914302,0.33157218,3512.4,3511.7,3.0]
[1718930915068,0.33157218,3512.4,3511.4,3.0]
[1718930917402,2.3822,3513.7,3512.1,2.2709]
[1718930917604,2.3822,3513.7,3512.4,2.103]
[1718930918106,3.0,3515.0,3512.5,2.2709]
[1718930918409,2.95061138,3515.6,3513.1,2.103]
[1718930918410,3.0,3515.4,3513.1,2.103]
[1718930918581,3.0,3515.4,3513.2,0.2103]
[1718930918582,0.07690548,3514.9,3513.2,0.2103]
[1718930918785,0.07712834,3514.8,3512.9,2.103]
[1718930919402,3.78303154,3514.7,3512.9,2.103]
[1718930919590,0.07753726,3514.6,3512.9,2.103]
[1718930919969,4.17273726,3514.6,3512.6,3.33878323]
[1718930920174,4.17273726,3514.6,3512.7,2.66396832]
[1718930920408,4.17273726,3514.6,3512.8,3.0]
[1718930920987,0.55,3514.5,3512.8,3.0]
[1718930921517,0.07798604,3514.4,3512.8,3.0]
[1718930921811,0.07798604,3514.4,3512.9,0.56639683]
[1718930923611,0.07798604,3514.4,3513.0,0.05692161]
[1718930923781,0.07798604,3514.4,3513.0,6.26154074]
[1718930923981,0.55,3514.5,3513.1,3.0]
[1718930924279,0.07801262,3514.4,3513.2,0.98279376]
[1718930924676,0.55,3514.5,3513.2,0.98279376]
[1718930925211,0.07801262,3514.4,3513.2,0.98279376]
[1718930925382,1.713,3515.1,3513.2,0.98279376]
[1718930925582,1.713,3515.1,3513.3,1.22904129]
[1718930925583,4.0952,3515.1,3513.3,1.22904129]
[1718930925818,4.0952,3515.1,3513.5,6.20461913]
[1718930926016,0.0781555,3515.0,3513.6,3.0]
[1718930926780,0.55,3514.9,3513.6,3.0]
[1718930926984,0.07829837,3514.8,3513.6,3.0]
[1718930929681,1.79129837,3514.8,3513.6,3.0]
[1718930929884,2.49712984,3514.7,3513.6,3.0]
[1718930930704,0.07829837,3514.6,3513.6,3.0]
[1718930931024,0.55,3514.5,3513.6,3.0]
[1718930931423,0.0781854,3514.4,3513.6,3.0]
[1718930932796,1.713,3515.0,3513.6,3.0]
[1718930932985,0.55,3514.9,3513.7,0.92046191]
[1718930933184,0.62812226,3514.9,3513.7,0.92046191]
[1718930934322,0.62812226,3514.9,3513.6,3.0]
[1718930935124,2.34112226,3514.9,3513.6,3.0]
[1718930937807,1.713,3514.5,3513.6,3.0]
[1718930938005,1.713,3514.3,3513.7,3.0]
[1718930938207,2.3409395,3514.2,3513.3,3.0]
[1718930938434,0.28909395,3514.1,3513.3,3.0]
[1718930938616,0.83909395,3514.1,3513.3,3.0]
[1718930938826,0.0779395,3514.0,3513.3,3.0]
[1718930941796,0.0779395,3514.0,3512.9,5.2709]
[1718930941997,0.55,3514.1,3512.9,5.2709]
[1718930942196,1.713,3514.3,3513.0,1.14755191]
[1718930942394,2.3407733,3514.2,3513.0,4.14755191]
[1718930942608,0.55,3514.1,3513.0,4.14755191]
[1718930944720,2.3822,3514.2,3513.0,4.14755191]
[1718930945023,2.263,3514.1,3513.0,3.0]
[1718930945223,2.263,3514.1,3512.8,6.20461913]
[1718930945527,0.07760713,3514.0,3512.8,6.20461913]
[1718930945699,1.713,3513.8,3512.8,6.20461913]
[1718930946103,0.62757056,3513.7,3512.8,6.20461913]
[1718930946302,4.0,3513.6,3512.8,6.20461913]
[1718930947022,0.07757056,3513.5,3512.9,3.0]
[1718930947815,0.07757056,3513.5,3512.5,3.0]
[1718930948332,2.3822,3513.4,3512.5,3.0]
[1718930948717,0.07733781,3513.3,3512.5,3.0]
[1718930949951,0.07733781,3513.3,3512.5,3.92046191]
[1718930950504,5.713,3513.6,3512.5,3.92046191]
[1718930950722,0.07729794,3513.2,3512.5,3.92046191]
[1718930950938,4.0,3513.6,3512.5,3.92046191]
[1718930951121,0.07729794,3513.1,3512.7,2.2709]
[1718930951316,4.0,3513.6,3512.7,5.2709]
[1718930951738,0.07735445,3513.5,3512.7,5.2709]
[1718930953053,4.0952,3514.2,3512.7,5.2709]
[1718930953219,0.62735445,3514.1,3512.8,7.13530613]
[1718930953423,0.62735445,3514.1,3512.9,3.0]
[1718930954859,0.07735445,3514.1,3512.9,3.0]
[1718930959648,0.55,3514.0,3512.9,3.0]
[1718930959813,0.5499357,3513.9,3512.9,3.0]
[1718930960759,4.0952,3513.8,3512.9,3.0]
[1718930960915,0.55,3513.7,3512.9,3.0]
[1718930961118,0.62763371,3513.7,3512.8,6.20461913]
[1718930962417,1.713,3513.4,3512.4,6.20461913]
[1718930962659,2.88282,3513.3,3512.4,6.20461913]
[1718930962826,2.96030077,3513.3,3512.4,6.20461913]
[1718930963521,2.96030077,3513.3,3511.4,2.2709]
[1718930963522,1.713,3513.1,3511.9,6.20461913]
[1718930963958,1.713,3512.9,3512.0,3.0]
[1718930964184,0.62721145,3513.0,3512.0,3.0]
[1718930964185,1.713,3512.7,3512.0,3.0]
[1718930964453,0.55,3512.8,3511.9,6.20461913]
[1718930964454,4.3215,3512.6,3511.9,6.20461913]
[1718930964757,0.07709508,3512.5,3511.3,6.20461913]
[1718930965179,0.55,3512.4,3511.3,6.20461913]
[1718930965495,0.07670922,3512.3,3511.3,6.20461913]
[1718930965631,4.0,3512.2,3511.3,6.82508104]
[1718930966069,0.07670922,3512.1,3511.3,6.82508104]
[1718930966481,0.07670922,3512.1,3511.3,6.20461913]
[1718930967136,4.0,3512.0,3511.3,6.20461913]
[1718930967339,4.0,3512.0,3511.4,3.0]
[1718930967555,0.07650626,3511.9,3511.4,3.0]
[1718930967947,2.3822,3511.8,3511.4,3.0]
[1718930968159,1.713,3511.3,3509.9,6.20461913]
[1718930968370,1.713,3511.3,3510.0,3.0]
[1718930968550,2.33921675,3511.2,3510.0,3.0]
[1718930968972,2.33921675,3511.2,3509.9,6.20461913]
[1718930969268,4.0,3511.1,3510.0,0.62046191]
[1718930969646,0.07614685,3511.0,3510.0,0.62046191]
[1718930970251,4.0,3510.9,3510.0,0.62046191]
[1718930970574,4.0,3510.9,3510.0,3.62046191]
[1718930970868,0.07580725,3510.8,3510.0,3.62046191]
[1718930971462,0.07580725,3510.8,3510.0,3.0]
[1718930971646,4.0,3510.7,3510.0,3.0]
[1718930972069,0.07580725,3510.6,3510.0,3.0]
[1718930974344,2.94544168,3511.2,3510.0,3.0]
[1718930974778,0.07580725,3511.1,3510.0,3.0]
[1718930975073,0.55,3511.0,3510.0,3.0]
[1718930975274,0.07324728,3510.9,3510.0,3.0]
[1718930975479,2.3822,3511.4,3510.0,3.0]
[1718930975973,0.07326728,3511.3,3510.0,3.0]
[1718930976177,0.07326728,3511.3,3510.1,1.14755191]
[1718930981759,2.3822,3511.4,3510.1,1.14755191]
[1718930982867,0.07090266,3511.3,3510.1,1.14755191]
[1718930984981,2.3822,3510.8,3510.0,3.0]
[1718930985376,0.62083927,3510.7,3510.0,3.0]
[1718930986259,4.0,3510.5,3510.0,3.0]
[1718930986871,0.07083927,3510.4,3509.6,3.0]
[1718930987076,0.07083927,3510.4,3509.6,5.16057657]
[1718930987779,0.07083927,3510.4,3509.6,3.0]
[1718930988803,2.3822,3510.3,3509.5,6.20461913]
[1718930989292,0.07046547,3510.2,3509.5,6.20461913]
[1718930990157,0.07046547,3510.2,3509.6,3.0]
[1718931001313,4.0,3510.1,3509.6,3.0]
[1718931001740,0.07016846,3510.0,3509.6,3.0]
[1718931002905,0.71540531,3510.0,3509.6,3.0]
[1718931003908,4.0,3509.9,3509.6,3.0]
[1718931004488,0.07016846,3509.8,3509.3,0.1211466]
[1718931010330,2.3822,3509.7,3509.3,0.1211466]
[1718931010699,4.06996813,3509.6,3509.3,0.1211466]
[1718931011037,0.64521681,3509.5,3509.3,0.1211466]
[1718931011637,0.0699214,3509.4,3509.3,0.1211466]
[1718931012219,4.0699214,3509.4,3509.3,0.1211466]
[1718931013305,0.0699214,3509.4,3509.3,0.1211466]
[1718931013504,4.0952,3510.1,3509.3,0.1211466]
[1718931013813,0.0699214,3510.0,3509.3,0.1211466]
[1718931015952,2.3822,3509.9,3509.3,0.1211466]
[1718931016093,1.713,3509.8,3509.3,0.1211466]
[1718931016295,2.20659531,3509.8,3509.3,0.1211466]
[1718931016519,0.79409425,3509.7,3509.3,0.1211466]
[1718931017520,0.06991472,3509.7,3509.3,0.1211466]
[1718931017966,1.713,3510.1,3509.3,0.1211466]
[1718931018103,0.06991807,3509.6,3509.3,0.1211466]
[1718931018455,2.20653843,3510.1,3509.3,0.1211466]
[1718931018750,2.73539163,3510.1,3509.3,0.1211466]
[1718931018951,0.06991807,3510.0,3509.3,0.1211466]
[1718931019300,0.5634565,3510.0,3509.3,0.1211466]
[1718931021331,2.263,3509.9,3509.3,0.1211466]
[1718931021531,0.49359771,3509.8,3509.3,0.1211466]
[1718931021742,0.28265158,3509.7,3509.3,0.1211466]
[1718931022155,0.49359771,3509.8,3509.3,0.1211466]
[1718931022304,0.06998485,3509.6,3509.3,0.1211466]
[1718931022627,0.49359771,3509.8,3509.3,0.1211466]
[1718931022846,0.06998485,3509.5,3509.3,0.1211466]
[1718931023021,0.49359771,3510.0,3509.3,0.1211466]
[1718931023204,0.06992475,3509.4,3509.3,0.1211466]
[1718931023402,0.49359771,3510.0,3509.3,0.1211466]
[1718931023630,0.06992475,3509.4,3509.3,0.1211466]
[1718931023847,0.49359771,3510.0,3509.3,0.1211466]
[1718931024058,0.06992475,3509.4,3509.3,0.1211466]
[1718931024201,0.49359771,3510.0,3509.3,0.1211466]
[1718931024431,0.06996148,3509.4,3509.3,0.1211466]
[1718931024935,0.76710266,3510.0,3509.3,0.1211466]
[1718931025135,0.06996148,3509.4,3509.3,0.1211466]
[1718931025336,0.76710266,3510.0,3509.3,0.1211466]
[1718931025539,0.06996148,3509.4,3509.3,0.1211466]
[1718931025837,0.49355757,3510.0,3509.4,2.2709]
[1718931026033,0.49355757,3510.7,3509.5,0.23920466]
[1718931026340,0.49355757,3510.7,3509.5,3.23920466]
[1718931026839,2.20655757,3510.7,3509.5,3.23920466]
[1718931027687,0.55,3510.6,3509.5,3.23920466]
[1718931027835,0.51387576,3510.5,3509.5,3.23920466]
[1718931028032,0.55,3510.4,3509.5,3.23920466]
[1718931028281,0.49347331,3510.6,3509.5,3.23920466]
[1718931028575,1.713,3510.7,3509.5,3.23920466]
[1718931028576,2.20647331,3510.7,3509.5,3.23920466]
[1718931028779,2.20647331,3510.7,3509.6,1.18358704]
[1718931028780,0.55,3510.6,3509.6,1.18358704]
[1718931028978,1.04347331,3510.6,3509.6,1.18358704]
[1718931029483,0.55,3510.6,3509.6,1.18358704]
[1718931030276,0.49347331,3510.9,3509.6,1.18358704]
[1718931030485,0.55,3510.8,3509.6,1.18358704]
[1718931030696,0.06778246,3510.8,3509.7,1.28983108]
[1718931031781,0.10419481,3510.8,3509.7,1.28983108]
[1718931033409,0.10419481,3510.8,3509.8,2.2709]
[1718931033610,0.10419481,3510.8,3509.8,5.2709]
[1718931034400,2.3822,3510.5,3509.8,3.0]
[1718931034611,2.75638549,3510.4,3509.5,3.0]
[1718931034915,0.49338549,3510.3,3509.5,3.0]
[1718931035074,1.07432552,3510.2,3509.5,3.0]
[1718931035417,1.17883137,3510.2,3509.5,3.0]
[1718931037036,2.89183137,3510.2,3509.5,3.0]
[1718931037241,4.0,3509.8,3509.5,3.0]
[1718931037533,1.14761327,3509.7,3509.3,0.1211466]
[1718931037737,1.54761327,3509.7,3509.3,0.1211466]
[1718931038733,4.0,3509.5,3509.3,0.1211466]
[1718931039039,0.49355228,3509.4,3509.3,0.1211466]
[1718931039395,0.59753297,3509.4,3509.3,0.1211466]
[1718931039604,4.59753297,3509.4,3509.3,0.1211466]
[1718931040005,4.10398069,3509.4,3509.3,0.1211466]
[1718931040370,4.59760326,3509.4,3509.3,0.1211466]
[1718931040851,5.15236359,3509.4,3509.3,0.1211466]
[1718931041145,5.70236359,3509.4,3509.3,0.1211466]
[1718931042331,4.59760326,3509.4,3509.3,0.1211466]
[1718931043123,4.10398069,3509.4,3509.3,0.1211466]
[1718931043354,4.59755323,3509.4,3509.3,0.1211466]
[1718931045314,0.59755323,3509.4,3509.3,0.1211466]
[1718931045662,0.49357254,3510.1,3509.3,0.1211466]
[1718931045947,0.55,3510.0,3509.3,0.1211466]
[1718931046167,0.65385689,3510.0,3509.3,0.1211466]
[1718931049317,2.3822,3509.9,3509.3,0.1211466]
[1718931049532,2.75663247,3509.8,3509.3,0.1211466]
[1718931049734,4.0,3509.4,3509.3,0.1211466]
[1718931050060,5.04363247,3509.4,3509.3,0.1211466]
[1718931050237,5.14751279,3509.4,3509.3,0.1211466]
[1718931052647,4.65388032,3509.4,3509.3,0.1211466]
[1718931052823,5.14754006,3509.4,3509.3,0.1211466]
[1718931053023,5.88602093,3509.4,3509.3,0.1211466]
[1718931055835,5.39236122,3509.4,3509.3,0.1211466]
[1718931056029,5.88602214,3509.4,3509.3,0.1211466]
[1718931056558,5.88602214,3509.4,3509.3,0.0711466]
[1718931057256,7.59902214,3509.4,3509.3,0.0711466]
[1718931057443,1.713,3509.2,3508.2,6.20461913]
[1718931057650,2.20666092,3509.2,3508.2,6.20461913]
[1718931057845,0.10355906,3509.1,3508.2,6.20461913]
[1718931058044,0.55,3509.0,3508.2,6.20461913]
[1718931058345,4.10355906,3508.9,3508.2,6.20461913]
[1718931058553,0.95561347,3508.8,3508.2,6.20461913]
[1718931058743,0.95561347,3508.8,3508.3,3.0]
[1718931058954,0.10355906,3508.7,3508.3,3.0]
[1718931059360,0.95565556,3508.8,3508.3,3.0]
[1718931059524,0.10355906,3508.6,3508.3,3.0]
[1718931059928,0.95565556,3508.8,3508.3,3.0]
[1718931060539,0.10337496,3508.7,3508.3,3.0]
[1718931060768,0.95567333,3508.8,3508.3,3.0]
[1718931060951,0.95567333,3508.8,3507.9,3.0]
[1718931060952,2.3822,3508.4,3507.9,3.0]
[1718931061155,0.49372078,3508.3,3507.4,6.20461913]
[1718931061352,2.75672078,3508.3,3507.1,6.20461913]
[1718931061563,1.713,3508.1,3507.1,6.20461913]
[1718931061863,4.55,3508.0,3507.1,6.20461913]
[1718931062092,4.65311719,3508.0,3507.1,6.20461913]
[1718931062268,0.49383936,3507.9,3507.1,6.20461913]
[1718931062582,0.55,3507.8,3507.1,6.20461913]
[1718931062879,0.55,3507.8,3507.2,3.0]
[1718931063084,0.10285262,3507.7,3507.2,3.0]
[1718931063257,0.59669198,3507.7,3507.3,2.2709]
[1718931063459,4.0,3507.8,3507.4,1.14755191]
[1718931063663,2.3822,3508.9,3507.4,4.14755191]
[1718931063861,0.493717,3508.8,3507.5,2.2709]
[1718931064076,8.27659261,3510.0,3507.6,2.2709]
[1718931064077,0.493717,3509.2,3507.6,2.2709]
[1718931064268,0.493717,3509.6,3507.8,2.103]
[1718931064578,0.10264164,3509.5,3507.9,2.2709]
[1718931064801,0.10264164,3509.5,3508.3,2.2709]
[1718931064984,1.713,3509.8,3508.4,2.2709]
[1718931065153,4.0,3508.5,3508.4,2.2709]
[1718931065513,1.713,3510.1,3508.4,5.2709]
[1718931065656,1.713,3509.9,3508.5,0.22709]
[1718931066359,0.10318068,3509.8,3508.5,0.22709]
[1718931066684,0.21037573,3509.7,3508.5,0.22709]
[1718931066881,0.10318068,3509.8,3508.5,0.22709]
[1718931067084,0.49358592,3509.9,3508.6,2.2709]
[1718931067285,2.3822,3510.6,3508.6,2.2709]
[1718931067286,0.10318068,3509.7,3508.6,2.2709]
[1718931067485,0.49358592,3510.5,3508.5,3.22709]
[1718931067486,0.49358592,3510.5,3508.8,2.2709]
[1718931067687,0.49358592,3510.5,3508.9,2.2709]
[1718931067905,0.10325764,3510.4,3508.9,2.2709]
[1718931068093,0.10325764,3510.4,3508.9,5.2709]
[1718931068272,0.10325764,3510.4,3508.9,2.2709]
[1718931068465,0.4691964,3510.3,3509.0,0.6120699]
[1718931068675,0.4691964,3510.3,3509.0,3.6120699]
[1718931069090,0.10325764,3510.2,3509.0,3.6120699]
[1718931070925,0.10325764,3510.2,3509.0,3.0]
[1718931071231,0.10325764,3510.2,3508.9,2.2709]
[1718931071232,0.59682652,3510.2,3508.9,2.2709]
[1718931071511,0.10325764,3510.2,3509.0,0.01431262]
[1718931071672,0.10325764,3510.2,3509.2,2.2709]
[1718931072017,0.10325764,3510.2,3509.3,0.01431139]
[1718931072309,2.20656888,3510.9,3509.3,0.01431139]
[1718931072590,0.10331451,3510.8,3509.3,0.01431139]
[1718931072792,0.10331451,3510.8,3509.4,2.2709]
[1718931072963,0.10331451,3510.8,3509.5,0.5428613]
[1718931073295,1.713,3511.2,3509.5,3.5428613]
[1718931073462,0.10418476,3510.7,3509.6,5.2709]
[1718931073666,1.713,3511.2,3509.7,0.01433934]
[1718931073883,1.713,3511.2,3509.7,1.21617738]
[1718931073884,0.10418476,3510.6,3509.7,1.21617738]
[1718931074166,0.66917689,3511.1,3509.7,1.20183804]
[1718931074490,0.10438882,3511.0,3509.7,1.20183804]
[1718931074723,0.84799628,3510.9,3509.7,1.20183804]
[1718931074890,0.10438882,3511.0,3509.7,1.20183804]
[1718931075093,0.4933971,3511.3,3509.7,1.20183804]
[1718931075291,0.10438882,3510.9,3509.7,1.20183804]
[1718931075608,0.10446909,3510.8,3509.8,2.2709]
[1718931075806,0.4933971,3511.3,3509.8,5.97102592]
[1718931075999,0.10455939,3510.7,3509.8,5.97102592]
[1718931076194,2.2063971,3511.3,3509.8,5.2709]
[1718931076404,0.10455939,3510.6,3509.8,3.0]
[1718931076585,2.2063971,3510.8,3509.5,3.0]
[1718931076787,0.10455939,3510.5,3509.5,3.0]
[1718931077011,1.14806906,3510.7,3509.5,3.0]
[1718931077193,1.04349631,3510.7,3509.5,3.0]
[1718931077395,0.50912438,3510.6,3509.5,3.76817848]
[1718931077683,0.10457275,3510.6,3509.5,3.76817848]
[1718931078320,1.713,3511.0,3509.5,3.0]
[1718931078494,0.10457275,3510.5,3509.5,3.0]
[1718931078831,0.10448915,3510.4,3509.5,3.0]
[1718931078999,1.04349631,3510.9,3509.5,3.0]
[1718931079190,0.10448915,3510.3,3509.5,3.0]
[1718931079385,1.04349631,3510.9,3509.5,3.0]
[1718931079586,2.09313878,3510.8,3509.5,3.0]
[1718931079803,1.713,3510.6,3509.5,3.0]
[1718931079997,0.55,3510.5,3509.5,3.0]
[1718931080223,1.04350774,3510.5,3509.5,3.0]
[1718931080407,0.10438213,3510.4,3509.5,3.0]
[1718931080611,0.28608899,3510.3,3509.5,3.0]
[1718931080991,0.10438213,3510.2,3509.5,3.0]
[1718931082295,0.55,3510.1,3509.5,3.0]
[1718931082700,0.10412456,3510.0,3509.5,3.0]
[1718931085029,0.10412456,3510.0,3509.2,3.0]
[1718931086727,4.0,3509.8,3509.2,3.0]
[1718931086932,0.90397553,3509.7,3509.2,3.0]
[1718931087224,1.0080198,3509.7,3509.2,3.0]
[1718931089107,0.51445673,3509.7,3509.2,3.0]
[1718931089314,1.00803431,3509.7,3509.2,3.0]
[1718931090742,2.3822,3509.5,3509.2,3.0]
[1718931090913,2.3822,3509.5,3508.8,3.0]
[1718931090914,0.88760101,3509.4,3508.8,3.0]
[1718931091109,0.9915449,3509.4,3508.8,3.0]
[1718931092128,0.49796732,3509.4,3508.8,3.0]
[1718931092312,0.74301673,3509.3,3508.8,3.0]
[1718931092808,0.10393386,3509.2,3508.8,3.0]
[1718931093043,0.74301673,3509.3,3508.8,3.0]
[1718931093238,0.10393386,3509.1,3508.8,3.0]
[1718931093407,0.74301673,3509.3,3508.8,3.0]
[1718931093620,0.50522061,3509.2,3508.8,3.0]
[1718931097038,0.50522061,3509.2,3508.4,3.0]
[1718931097256,0.10393386,3509.2,3508.4,3.0]
[1718931097412,0.49362878,3509.4,3508.5,2.2709]
[1718931097745,0.10365277,3509.1,3508.5,2.2709]
[1718931097928,0.49362878,3509.5,3508.5,2.2709]
[1718931098135,0.49362878,3509.5,3508.6,1.35785191]
[1718931098453,0.10365277,3509.4,3508.7,2.2709]
[1718931098611,0.49355472,3509.5,3508.7,5.2709]
[1718931098808,0.10372973,3509.4,3508.7,5.2709]
[1718931099341,0.49355472,3509.5,3508.7,5.2709]
[1718931099747,0.10372973,3509.4,3508.7,5.2709]
[1718931100132,2.20655472,3510.1,3508.7,5.2709]
[1718931100338,1.00887547,3510.0,3508.7,5.2709]
[1718931100531,1.60620679,3510.0,3508.7,5.2709]
[1718931101750,1.60621509,3510.0,3508.7,5.2709]
[1718931102132,0.59733962,3510.0,3508.7,5.2709]
[1718931102340,0.1037766,3510.0,3508.7,7.3739]
[1718931102656,0.49356302,3510.1,3508.7,7.3739]
[1718931102827,2.20656302,3510.5,3508.7,7.3739]
[1718931103026,0.5132899,3510.4,3508.8,0.87317519]
[1718931103240,1.00685292,3510.4,3508.8,3.87317519]
[1718931103442,1.00685292,3510.4,3508.9,2.2709]
[1718931103643,0.5132899,3510.4,3508.9,5.2709]
[1718931103853,0.1037699,3510.4,3509.0,1.12470752]
[1718931104151,0.1037699,3510.4,3509.0,4.12470752]
[1718931104335,0.1037699,3510.4,3509.1,2.2709]
[1718931104547,0.1037699,3510.4,3509.1,5.2709]
[1718931104950,2.07262543,3510.3,3509.1,5.2709]
[1718931105144,2.07262543,3510.3,3509.2,0.63956075]
[1718931105345,2.07262543,3510.3,3509.2,3.63956075]
[1718931105346,2.17651243,3510.3,3509.2,3.63956075]
[1718931105543,2.07262543,3510.2,3509.2,3.63956075]
[1718931105767,2.07262543,3510.1,3509.2,3.63956075]
[1718931105956,2.07262543,3510.1,3509.3,1.21150799]
[1718931106261,2.07262543,3510.1,3509.2,3.63956075]
[1718931106469,2.07262543,3510.0,3509.2,3.63956075]
[1718931106645,2.07262543,3509.9,3509.2,3.0]
[1718931106842,2.07262543,3509.9,3509.1,5.2709]
[1718931107150,2.72654923,3509.8,3509.1,3.0]
[1718931107346,3.24827441,3509.7,3509.1,3.0]
[1718931107552,3.11609949,3509.6,3509.1,3.0]
[1718931107847,2.56666314,3509.5,3509.1,3.0]
[1718931108046,2.07307408,3509.4,3509.1,3.0]
[1718931108657,0.10393383,3509.3,3509.1,3.0]
[1718931108857,2.07307408,3509.2,3509.1,3.0]
[1718931109057,2.07307408,3509.2,3508.6,3.0]
[1718931109259,2.07307408,3509.1,3508.6,4.14755191]
[1718931109455,2.3822,3509.9,3508.7,2.2709]
[1718931109456,2.07307408,3509.0,3508.7,2.2709]
[1718931109656,2.07307408,3508.9,3508.7,2.2709]
[1718931109851,2.07307408,3508.8,3508.7,3.41845191]
[1718931110170,2.56666314,3509.6,3508.7,6.41845191]
[1718931110468,2.67039957,3509.5,3508.8,4.5623071]
[1718931110668,2.07298657,3509.4,3508.8,3.0]
[1718931110880,2.56654749,3509.4,3508.7,2.2709]
[1718931111168,2.07298657,3509.3,3508.7,2.2709]
[1718931111366,2.07298657,3509.2,3508.7,2.2709]
[1718931111940,2.07298657,3509.1,3508.7,2.2709]
[1718931112188,2.07298657,3509.0,3508.7,2.2709]
[1718931112388,2.07298657,3508.9,3508.8,1.14755191]
[1718931112689,2.56654749,3509.7,3508.8,3.0]
[1718931112921,2.17685351,3509.6,3508.8,3.0]
[1718931113059,2.07298657,3509.5,3508.7,5.2709]
[1718931113260,2.56654749,3509.5,3508.7,2.2709]
[1718931113588,2.17685351,3509.4,3508.7,2.2709]
[1718931113793,2.07298657,3509.3,3508.7,2.2709]
[1718931114308,2.07298712,3509.2,3508.6,3.0]
[1718931114476,0.10394057,3509.1,3508.6,3.0]
[1718931114702,2.07298712,3509.0,3508.6,3.0]
[1718931114987,0.10385023,3508.9,3508.6,3.0]
[1718931115197,2.07298712,3508.8,3508.6,3.0]
[1718931115708,2.17683735,3508.7,3508.6,3.0]
[1718931115915,2.07298712,3508.7,3508.6,3.0]
[1718931116189,2.56655548,3509.1,3508.6,3.0]
[1718931116378,2.07298712,3509.0,3508.6,3.0]
[1718931116580,2.07298712,3508.9,3508.6,3.0]
[1718931116779,2.56655548,3508.9,3508.6,3.0]
[1718931116987,2.07313877,3508.8,3508.6,3.0]
[1718931117187,0.10385023,3508.8,3508.6,3.0]
[1718931117389,2.07313895,3508.7,3508.6,3.0]
[1718931117883,2.07313895,3509.3,3508.6,3.0]
[1718931118077,2.17698918,3509.2,3508.6,3.0]
[1718931118278,2.07313895,3509.1,3508.6,3.0]
[1718931118682,0.10385023,3509.0,3508.6,3.0]
[1718931118882,2.07313895,3508.9,3508.6,3.0]
[1718931119284,2.17698918,3508.8,3508.6,3.0]
[1718931119488,2.07313895,3508.7,3508.6,3.0]
[1718931119898,2.07313895,3509.3,3508.6,3.0]
[1718931120099,0.10385023,3509.2,3508.6,3.0]
[1718931120597,2.3822,3509.5,3508.6,3.0]
[1718931120796,2.56674051,3509.4,3508.6,3.0]
[1718931120975,2.56674,3509.3,3508.6,3.0]
[1718931121181,2.07313616,3509.2,3508.6,3.0]
[1718931121486,2.17677832,3509.1,3508.6,4.14755191]
[1718931121691,2.07298163,3509.0,3508.6,4.14755191]
[1718931121886,2.07298163,3508.9,3508.6,3.0]
[1718931122086,2.07298163,3508.8,3508.6,3.0]
[1718931122271,2.07298163,3508.7,3508.6,3.0]
[1718931123004,2.07298163,3508.7,3508.6,5.2709]
[1718931123201,2.07298163,3509.9,3508.6,5.2709]
[1718931123374,2.62298163,3509.8,3508.6,5.2709]
[1718931123574,0.65381675,3509.8,3508.6,5.2709]
[1718931123773,2.07291247,3509.7,3508.6,5.2709]
[1718931123996,2.07291247,3509.6,3508.7,1.14755191]
[1718931124309,2.17672922,3509.5,3508.7,1.14755191]
[1718931124499,2.07291247,3509.4,3508.7,1.14755191]
[1718931124680,2.07291247,3509.3,3508.7,1.14755191]
[1718931124882,2.07291247,3509.2,3508.7,1.14755191]
[1718931125086,2.07291247,3509.1,3508.7,1.14755191]
[1718931125286,2.07291247,3509.0,3508.7,1.14755191]
[1718931125487,2.07291247,3508.9,3508.6,5.2709]
[1718931125781,2.07291247,3508.8,3508.6,5.2709]
[1718931126098,2.07291247,3508.7,3508.6,5.2709]
[1718931126309,2.07291247,3509.6,3508.6,5.2709]
[1718931126471,2.17682961,3509.5,3508.6,5.2709]
[1718931126676,2.07306551,3509.4,3508.6,5.2709]
[1718931126901,2.07306551,3509.3,3508.6,5.2709]
[1718931127094,2.07306551,3509.2,3508.7,1.14755191]
[1718931127294,2.07306551,3509.1,3508.7,1.14755191]
[1718931127490,2.07306551,3509.0,3508.7,1.14755191]
[1718931127807,2.07306551,3508.9,3508.6,5.2709]
[1718931128019,2.07306551,3508.8,3508.6,5.2709]
[1718931128317,2.07306551,3508.7,3508.6,5.2709]
[1718931128473,2.07306551,3509.6,3508.6,6.41845191]
[1718931128680,2.17698265,3509.5,3508.6,6.41845191]
[1718931128880,2.07306551,3509.4,3508.6,6.41845191]
[1718931129132,2.07306551,3509.3,3508.7,1.2623071]
[1718931129336,2.07306551,3509.2,3508.7,1.2623071]
[1718931129515,2.07306551,3509.1,3508.6,5.2709]
[1718931129818,0.55,3509.8,3508.6,5.2709]
[1718931129981,2.07298208,3509.7,3508.6,5.2709]